Cogmind - Beta 16 @@@ ROGUE MODE // 2025.10.25 @ 08:59:35 Player: Moodge Result: Destroyed by Y-45 Defender with Heavy Assault Rifle Performance ------------- Evolutions (1) 500 Regions Visited (2) 400 Robots Destroyed (21) 105 Value Destroyed (670) 670 Prototype IDs (3) 60 Alien Tech Used (0) 0 Bonus (0) 0 TOTAL SCORE: 1735 Bonus ------- None Cogmind --------- Core Integrity 0/400 Matter 300/300 Energy 250/250 System Corruption 4% Temperature Cool (0) Movement Walking (400) Ox4 Location -9/Materials Parts ------- > --- POWER (2) -------- Ion Engine > --- PROPULSION (2) --- Aluminum Leg Aluminum Leg > --- UTILITY (3) ------ Huge Storage Unit > --- WEAPON (2) ------- Flail > --- INVENTORY (25) --- Light Nuclear Core Aluminum Leg Aluminum Leg Compact Wheel Targeting Computer Targeting Computer Beam Rifle Grenade Launcher Flail Peak State ------------ > --- POWER ------------ Light Ion Engine Light Nuclear Core > --- PROPULSION ------- Light Treads Light Treads > --- UTILITY ---------- Improved Heat Sink Huge Storage Unit > --- WEAPON ----------- Heavy Assault Rifle Improved Assault Rifle > --- INVENTORY -------- Light Nuclear Core Aluminum Leg Aluminum Leg Compact Wheel Huge Storage Unit Small Laser Small Laser Beam Rifle [Rating: 16] Favorites ----------- Power Ion Engine Engine Ion Engine Power Core Light Nuclear Core Propulsion Aluminum Leg Treads Light Treads Leg Aluminum Leg Wheel Compact Wheel Utility Huge Storage Unit Device Improved Heat Sink Storage Huge Storage Unit Processor Signal Interpreter Weapon Improved Assault Rifle Energy Gun Small Laser Ballistic Gun Improved Assault Rifle Impact Weapon Flail Build | -11 -10 -9 ------- Run | Yrd Mat Mat Slots Evolved 2 | . . 2 Power 1 | . . 1 Propulsion . | . . . Utility 1 | . . 1 Weapon . | . . . Parts Attached 29 | 6 4 19 Power 5 | 2 . 3 Engine 4 | 2 . 2 Core 1 | . . 1 Reactor . | . . . Propulsion 9 | 3 . 6 Treads 2 | 1 . 1 Leg 5 | . . 5 Wheel 2 | 2 . . Hover . | . . . Flight . | . . . Utility 6 | 1 1 4 Device 2 | . . 2 Storage 3 | 1 1 1 Processor 1 | . . 1 Hackware . | . . . Protection . | . . . Artifact . | . . . Weapon 9 | . 3 6 Energy Gun 5 | . 2 3 Energy Cannon . | . . . Ballistic Gun 3 | . 1 2 Ballistic Cannon . | . . . Launcher . | . . . Special Weapon . | . . . Impact Weapon 1 | . . 1 Slashing Weapon . | . . . Piercing Weapon . | . . . Special Melee Weapon . | . . . Unidentified Prototypes 1 | . . 1 Parts Lost 15 | . 3 12 Power 4 | . . 4 Propulsion 3 | . 1 2 Utility 3 | . . 3 Weapon 5 | . 2 3 Highest Loss Streak 3 | . 2 3 To Critical Strikes . | . . . Average Backups 7 | 5 6 7 Power 1 | . 1 1 Propulsion 3 | 3 4 2 Utility 1 | . . 1 Weapon 1 | 1 . 2 Tool/Special . | . . . Unused Backups 8 | . . 8 Power 1 | . . 1 Propulsion 2 | . . 2 Utility 2 | . . 2 Weapon 3 | . . 3 Tool/Special . | . . . Average Slot Usage (%) 74 | . 82 72 Engine 7 | . 14 5 Core 2 | . . 3 Treads 7 | . . 10 Leg 7 | . . 10 Wheel 6 | . 26 . Device 4 | . . 5 Storage 11 | . 14 11 Processor 3 | . . 5 Energy Gun 9 | . 15 8 Ballistic Gun 10 | . 12 10 Impact Weapon 1 | . . 1 Peak Build Rating 16 | 4 6 16 Average Rating 9 | 3 5 10 On Entrance 2 | . 4 4 Avg Prop Armor Cover (%) . | . . . Naked Turns . | . . . Heaviest Build 95 | 10 88 95 Greatest Support 40 | 32 32 40 Greatest Overweight (x) 8 | . 5 8 Average Overweight (x) 2 | . 1 3 Largest Inventory Capacity 25 | 8 25 25 Average Capacity 22 | 6 15 25 Most Carried 11 | 8 7 11 Average Carried 7 | 6 6 7 Final Capacity 25 | 8 25 25 Final Carried 9 | 8 7 9 Class Distribution -------------------- 76% | Mutant 23% | Scavenger-Mutant Dominant Class ---------------- Mutant | -10/Materials Mutant | -9/Materials Resources | -11 -10 -9 ----------- Run | Yrd Mat Mat Matter Collected 579 | 234 73 272 Remotely . | . . . Salvage Created 804 | . 147 657 Parts 48 | . 10 38 Haulers Intercepted . | . . . Recyclers Shooed . | . . . Parts Field Recycled . | . . . Retrieved Matter . | . . . Parts Self-Destructed . | . . . Prevented . | . . . Parts Restored . | . . . Kills | -11 -10 -9 ------- Run | Yrd Mat Mat Combat Hostiles Destroyed 21 | . 5 16 Guns 20 | . 4 16 Classes Destroyed 4 | . 2 2 Swarmer 5 | . 3 2 Grunt 13 | . 2 11 Brawler 1 | . . 1 Sentry 2 | . . 2 Best Kill Streak 3 | . 3 3 Combat Bots Only 3 | . 3 3 Max Kills in Single Turn 1 | . 1 1 Gunslinging . | . . . Exploded . | . . . Melee . | . . . Uniques/NPCs Destroyed . | . . . Combat | -11 -10 -9 -------- Run | Yrd Mat Mat Hostile Shots Fired 202 | . 29 173 Missed 56 | . 5 51 Hits 146 | . 24 122 Melee 4 | . . 4 Projectile 142 | . 24 118 Critical Strikes 3 | . . 3 Damage Taken 1964 | . 273 1691 Core 488 | . 74 414 Absorbed by Shields . | . . . Core Remaining (%) 85 | 100 70 . Volleys Fired 79 | . 23 56 Largest 2 | . 2 2 Hottest 121 | . 80 121 Shots Fired 117 | . 41 76 Gun 117 | . 41 76 Cannon . | . . . Launcher . | . . . Special . | . . . Kinetic 46 | . 17 29 Thermal 48 | . 1 47 Explosive . | . . . Electromagnetic 23 | . 23 . Robot Hit Streak 16 | . 10 16 Robot Miss Streak 3 | . 3 3 Penetration Max . | . . . Secondary Targets 1 | . . 1 Max Gunslinging Chain 1 | . . 1 Shots Hit Robots 83 | . 26 57 Core Hits 34 | . 8 26 Critical Kills . | . . . Critical Parts Destroyed . | . . . Critical Strikes . | . . . Melee Attacks . | . . . Impact . | . . . Slashing . | . . . Piercing . | . . . Sneak Attacks . | . . . Combat Hostiles . | . . . Follow-up Attacks . | . . . Damage Inflicted 1085 | . 294 791 Guns 1085 | . 294 791 Cannons . | . . . Explosions . | . . . Melee . | . . . Ramming . | . . . Kinetic 389 | . 78 311 Thermal 490 | . 10 480 Explosive . | . . . Electromagnetic 206 | . 206 . Impact . | . . . Slashing . | . . . Piercing . | . . . Highest Corruption 4 | . . 4 Average Corruption 4 | . . 4 Corruption Purged . | . . . Corruption Blocked . | . . . Overload Shots . | . . . Overflow Damage . | . . . Projectiles . | . . . Explosions . | . . . Melee . | . . . Knockbacks . | . . . Impact . | . . . Kinetic . | . . . Secondary . | . . . Self-Inflicted Damage . | . . . Shots . | . . . Rammed . | . . . Targets Rammed . | . . . Kicked . | . . . Crushed . | . . . Highest Temperature 132 | . 131 132 Average Temperature 47 | . 64 32 Received Heat Transfer 798 | . 111 687 Siege Activations . | . . . Martial Activations . | . . . Shielding Activations . | . . . Robots Disrupted . | . . . Combat Hostiles . | . . . Robots Corrupted 1 | . 1 . Combat Hostiles 1 | . 1 . Parts Fried 2 | . 2 . Impact Corruptions . | . . . Robots Melted . | . . . Combat Hostiles . | . . . Parts Melted 2 | . . 2 Heat Transferred 1119 | . 25 1094 Parts Sabotaged . | . . . Parts Stolen . | . . . Parts Stripped . | . . . Power Chain Reactions . | . . . Alert | -11 -10 -9 ------- Run | Yrd Mat Mat Maximum Alert Level . | . . . Low Security (%) 100 | 100 100 100 Level 1 . | . . . Level 2 . | . . . Level 3 . | . . . Level 4 . | . . . Level 5 . | . . . High Security . | . . . Max Security . | . . . Peak Influence 80 | . 70 80 Initial 12 | . . 12 Average 19 | . 14 21 Influence Increases 589 | . 120 469 Destroy 0b10 Robot/C 420 | . 100 320 Destroy Leader 100 | . 20 80 Successful Hack 9 | . . 9 Lose Combat Pursuer 60 | . . 60 Influence Decreases 557 | . 90 467 Entered New Map 18 | . . 18 Time Decay 407 | . 60 347 Lost Part 132 | . 30 102 Squads Dispatched 2 | . 1 1 Investigation 1 | . . 1 Extermination . | . . . Reinforcement 1 | . 1 . Assault . | . . . Garrison . | . . . Intercept . | . . . Searches Triggered . | . . . Construction Impeded . | . . . Haulers Reinforced . | . . . Active Scanning Responses . | . . . Cargo Convoy Interrupts . | . . . Stealth | -11 -10 -9 --------- Run | Yrd Mat Mat Distress Signals 3 | . 1 2 Communications Jammed . | . . . Distress Signals . | . . . Times Spotted 37 | . 13 24 Peak Tracking Total 5 | . 3 5 Tactical Retreats 3 | . . 3 Traps | -11 -10 -9 ------- Run | Yrd Mat Mat Traps Triggered . | . . . Indirectly . | . . . Trap Hack Attempts . | . . . Triggered . | . . . Disarmed . | . . . Reprogrammed . | . . . Reused . | . . . Traps Extracted . | . . . Installed . | . . . Triggered . | . . . Machines | -11 -10 -9 ---------- Run | Yrd Mat Mat Machines Disabled . | . . . Max in Single Turn . | . . . Machines Repaired . | . . . Machines Dismantled . | . . . Machines Sabotaged . | . . . Overloaded Fab Kills . | . . . Hacking | -11 -10 -9 --------- Run | Yrd Mat Mat Machines Accessed 6 | . 1 5 Terminals 5 | . 1 4 Fabricators . | . . . Repair Stations . | . . . Recycling Units 1 | . . 1 Scanalyzers . | . . . Garrison Access . | . . . Total Hacks 17 | . 4 13 Successful 6 | . . 6 Failed 11 | . 4 7 Catastrophic 3 | . 1 2 Database Lockouts . | . . . Manual 10 | . 5 5 Terminals 15 | . 4 11 Fabricators . | . . . Repair Stations . | . . . Recycling Units 2 | . . 2 Scanalyzers . | . . . Garrison Access . | . . . Terminal Hacks 4 | . . 4 Prototype ID Bank 1 | . . 1 Branch Access Points 1 | . . 1 Emergency Access Points 1 | . . 1 Maintenance Status 1 | . . 1 Fabricator Hacks . | . . . Repair Station Hacks . | . . . Recycling Unit Hacks 2 | . . 2 Report Inventory 1 | . . 1 Retrieve Components 1 | . . 1 Scanalyzer . | . . . Garrison Access Hacks . | . . . Unauthorized Hacks . | . . . Terminals . | . . . Fabricators . | . . . Repair Stations . | . . . Recycling Units . | . . . Scanalyzers . | . . . Garrison Access . | . . . Data Cores Recovered . | . . . Used . | . . . Hacking Detections 3 | . 1 2 Full Trace Events 3 | . 1 2 Feedback Events . | . . . Feedback Blocked . | . . . Robot Schematics Acquired . | . . . Robots Built . | . . . Authchips . | . . . Time . | . . . Total Robot Build Rating . | . . . Part Schematics Acquired . | . . . Parts Built . | . . . Authchips . | . . . Time . | . . . Total Part Build Rating . | . . . Part Studies Acquired . | . . . Parts Repaired . | . . . Time . | . . . Parts Recycled . | . . . Recycled Matter . | . . . Retrieved Matter . | . . . Retrieved Components 9 | . . 9 Parts Scanalyzed . | . . . Part Schematics Acquired . | . . . Parts Damaged . | . . . Bothacking | -11 -10 -9 ------------ Run | Yrd Mat Mat Used RIF Installer . | . . . Robots Hacked . | . . . Non-combat . | . . . Combat . | . . . Robot Hacks Applied . | . . . Relay Couplers Released . | . . . Fabnet Peak Effective % . | . . . Robots Rewired . | . . . Allies Hacked . | . . . Hacks Repelled . | . . . Allies | -11 -10 -9 -------- Run | Yrd Mat Mat Total Allies . | . . . Largest Group . | . . . Highest-Rated Group . | . . . Highest-Rated Ally . | . . . Total Orders . | . . . Ally Attacks . | . . . Total Damage . | . . . Kills . | . . . Allies Corrupted . | . . . Allies Melted . | . . . Intel | -11 -10 -9 ------- Run | Yrd Mat Mat Active Infowar (turns) . | . . . Robot Analysis Total . | . . . Derelict Logs Recovered . | . . . Drone Launches . | . . . Drone Recoveries . | . . . Exploration | -11 -10 -9 ------------- Run | Yrd Mat Mat Turns Passed 2136 | 73 489 1574 Spaces Moved 503 | 59 111 333 Core 8 | 8 . . Treads 160 | 2 . 158 Legs 166 | . . 166 Wheels 169 | 49 111 9 Hover . | . . . Flight . | . . . Fastest Speed 50 | 50 100 175 Average Speed 282 | 95 128 366 Slowest Speed 680 | 160 175 680 Overloaded Moves . | . . . Propulsion Burnouts . | . . . Robots Hopped . | . . . Potential Cave-ins . | . . . Cave-ins Triggered . | . . . Exploration Rate (%) 20 | 5 31 25 Regions Visited 2 Branch Regions . Pre-discovered Areas . | . . . Known Exits Taken . | . . . Unknown Exits Taken 2 | 1 1 . Scrap Searched . | . . . Spaces Dug . | . . . Terrain Destroyed . | . . . Melee . | . . . Projectile . | . . . AOE . | . . . Terrain Rammed . | . . . Walls Destroyed . | . . . Machines Disabled . | . . . Actions | -11 -10 -9 --------- Run | Yrd Mat Mat Total 1103 | 74 420 609 Wait 446 | . 279 167 Move 501 | 58 110 333 Hop . | . . . Pick Up 34 | 9 3 22 Fast Attach 3 | 3 . . Attach 19 | 1 3 15 Detach 1 | . . 1 Swap 11 | 2 1 8 Drop 9 | 1 1 7 Fire 79 | . 23 56 Melee . | . . . Ram . | . . . Kick . | . . . Crush . | . . . Escape Stasis . | . . . Rewire . | . . . Trap . | . . . Miscellaneous . | . . . Route ------- -11/Scrapyard -10/Materials -9/Materials (discovered 2 exits: Min / Sto) History --------- Turn | Location | Event 9 | -11/Scrapyard | Discovered new exit (range 15) 74 | -11/Scrapyard | Entered Materials 305 | -10/Materials | Build established: Mutant 542 | -10/Materials | Discovered new exit (range 7) 563 | -10/Materials | Entered another Materials area 563 | -9/Materials | Evolved 2 slots: Power x1, Utility x1 1514 | -9/Materials | Core integrity fell below 50% 1572 | -9/Materials | Lost 3 parts (1p2w) 1900 | -9/Materials | Identified exit to Mines 1900 | -9/Materials | Identified exit to Storage 1978 | -9/Materials | Build established: Scavenger-Mutant 1999 | -9/Materials | Core integrity fell below 20% 2137 | -9/Materials | Destroyed by Y-45 Defender with Heavy Assault Rifle Last Messages --------------- 01999_ G-34 Mercenary destroyed. 02001_ Nuclear Reactor explodes. 02001_ Heat Sink destroyed. 02001_ Nuclear Reactor explodes. 02001_ Aluminum Leg destroyed. 02003_ The unstable cave ceiling collapses. 02003_ Dropped Huge Storage Unit. 02006_ The unstable cave ceiling collapses. 02065_ C-30 ARC bursts open, deploying its payload. 02065_ G-34 Mercenary unfolds itself. 02076_ Knocked back. 02079_ Signal Interpreter destroyed. 02079_ System corrupted by crushing effect (+4). 02079_ Knocked back. 02089_ B-36 Bruiser destroyed. 02091_ G-34 Mercenary destroyed. 02093_ Acquired 34 matter. 02134_ Particle Gun destroyed. 02137_ Electrolysis Chamber disabled. Map ----- +----------------------------------------------------+ | ?????## #?????????????????? | | ?????# #?????????????????? | | ?????# #?????????????????? | | ?????# # #?????????????????? | | ????## #?????????????????? | | ????# # #?????????????????? | | ?#### #! #?????????????????? | | ## ## % #?????????????????? | | # #?????????????????? | | # "" # # ###?????????????????? | | # "T!# # #???????????????????? | | # "" # # """ #???????????????????? | | # [[+ + """ #???????????????????? | | # ] # # """ =#???????????????????? | | # ] # # #??????????????###### | | #] ! # # #??????????????# | | # # ##############????????# | | ###### # =[ *% ########?# "" | | # # # """"" =""%+% #?# "T | | # # + """"" Y" ######%#?# "" | | # # # """"" = "" #????# #?# | | # =%# # #????#*#####+## | | # =+ ##+################ | | # =%# ^ | | # [+ %####??##########+##"" | | # ######@#####????# #"" | | # #?# ###### #"T | | ######?# """ + + #"" | | ???????# """ ###### #"" | | ???????# "" #????########### | | ???????# #???????# # | | ???????# """ #???????# # % | | ???????# """ #???????# # "" | | ???????# """ #???????# + "" | | ???????#! #???????# # "" | | ???????###Y######???????# # | | ?????????##?????????????##+##### | | ??????????????????????????????# "" | | ??????????????????????????????# "" | | ????????????????????######+#### "" | | ????????????????????# # | | ????????????????????# " # | | ????????????????????# T """ # # | | ????????????????????# " """ # # | | ????????????????????# """ # # | | ???????????????????## # + | | ???????????????????# # # | | ???????????????????## [ # # | | ??????##################+###### # | | ??????# %% # | +----------------------------------------------------+ Best States ------------- Heat Dissipation 42 Energy Generation 19 Energy Capacity 250 Matter Stores 300 Matter Capacity 300 Sight Range 16 Terrain Scan Density 10 Evasion (%) 40 Recoil Reduction 2 Item Schematics ----------------- None Robot Schematics ------------------ None Fabricated ------------ Nothing Repaired ---------- Nothing Studied --------- None Alien Tech Used ----------------- None Achievements -------------- None Challenges ------------ None Game ------ Seed DisruptionEnergyDirector Manual? 0 Play Time 00:20:09 Cumulative 16.1 hours Start 2025.10.25 @ 08:39:17 End 2025.10.25 @ 08:59:35 Sessions 1 Manual Loads 0 Difficulty Rogue Special Mode None Game No. 52 Rogue 52 Adventurer 0 Explorer 0 Win Type - Total 0 Types 0/0/0/0/0/0/0/0/0/0 Lore% 9 Gallery% 19 Achievement% 15 Wizard Run 0 Options --------- Layout 1 ASCII 0 Keyboard 0 Movement Mouse Keybinds 0 Fullscreen 1 Font 32/SmallcapsGlow Map View 50x35 Zoom Use 0% Tactical HUD 1 Map Filters NONE Filters NONE Steam 1 RUN: 12488519-4358-4cfb-a05a-75c24f1b6cab